[Event "Titled Tuesday Blitz May 30 Late 2023"]
[White "Devagharan, Devina"]
[Black "brm72"]
[WhiteFideId "2061600"]
[WhiteElo "2439"]
[BlackElo "2579"]
[Result "0-1"]
[Round "10"]
[TimeControl "180+2"]
[Date "2023.05.31"]
[WhiteClock "0:00:01"]
[BlackClock "0:00:05"]

1. d4 {[%clk 0:03:00]}  Nf6 {[%clk 0:02:57]} 2. c4 {[%clk 0:02:58]}  g6 {[%clk 0:02:57]} 3. Nc3 {[%clk 0:02:54]}  d5 {[%clk 0:02:57]} 4. cxd5 {[%clk 0:02:52]}  Nxd5 {[%clk 0:02:58]} 5. e4 {[%clk 0:02:51]}  Nxc3 {[%clk 0:02:58]} 6. bxc3 {[%clk 0:02:52]}  c5 {[%clk 0:02:58]} 7. Nf3 {[%clk 0:02:52]}  Bg7 {[%clk 0:02:58]} 8. Be2 {[%clk 0:02:50]}  O-O {[%clk 0:02:57]} 9. O-O {[%clk 0:02:51]}  cxd4 {[%clk 0:02:51]} 10. cxd4 {[%clk 0:02:52]}  Nc6 {[%clk 0:02:51]} 11. Be3 {[%clk 0:02:51]}  b6 {[%clk 0:02:52]} 12. d5 {[%clk 0:02:45]}  Ne5 {[%clk 0:02:43]} 13. Nxe5 {[%clk 0:02:37]}  Bxe5 {[%clk 0:02:44]} 14. Bd4 {[%clk 0:02:32]}  Qd6 {[%clk 0:02:29]} 15. Bxe5 {[%clk 0:02:00]}  Qxe5 {[%clk 0:02:30]} 16. Qd3 {[%clk 0:01:39]}  f5 {[%clk 0:02:29]} 17. Bf3 {[%clk 0:01:28]}  Bd7 {[%clk 0:01:59]} 18. Rac1 {[%clk 0:01:23]}  Rac8 {[%clk 0:01:59]} 19. exf5 {[%clk 0:01:14]}  Bxf5 {[%clk 0:01:56]} 20. Qb3 {[%clk 0:01:12]}  Kg7 {[%clk 0:01:54]} 21. Rfe1 {[%clk 0:01:07]}  Qf6 {[%clk 0:01:54]} 22. Rxc8 {[%clk 0:01:01]}  Rxc8 {[%clk 0:01:55]} 23. Qe3 {[%clk 0:01:00]}  Kf7 {[%clk 0:01:53]} 24. h3 {[%clk 0:00:58]}  Rc2 {[%clk 0:01:50]} 25. Qb3 {[%clk 0:00:50]}  Kg7 {[%clk 0:01:27]} 26. Qe3 {[%clk 0:00:34]}  Rc7 {[%clk 0:01:10]} 27. g4 {[%clk 0:00:31]}  Bc8 {[%clk 0:01:09]} 28. Kg2 {[%clk 0:00:30]}  Kf7 {[%clk 0:01:03]} 29. Qe4 {[%clk 0:00:24]}  Bb7 {[%clk 0:00:57]} 30. Qe6+ {[%clk 0:00:20]}  Qxe6 {[%clk 0:00:57]} 31. dxe6+ {[%clk 0:00:21]}  Kf6 {[%clk 0:00:56]} 32. Bxb7 {[%clk 0:00:21]}  Rxb7 {[%clk 0:00:57]} 33. f4 {[%clk 0:00:20]}  h6 {[%clk 0:00:54]} 34. Kf3 {[%clk 0:00:17]}  Rc7 {[%clk 0:00:53]} 35. Re2 {[%clk 0:00:13]}  Rc3+ {[%clk 0:00:53]} 36. Kg2 {[%clk 0:00:13]}  Rc6 {[%clk 0:00:51]} 37. Kf3 {[%clk 0:00:13]}  Rxe6 {[%clk 0:00:49]} 38. Rc2 {[%clk 0:00:14]}  Rd6 {[%clk 0:00:48]} 39. Ke4 {[%clk 0:00:14]}  Rd1 {[%clk 0:00:41]} 40. Rc6+ {[%clk 0:00:13]}  Rd6 {[%clk 0:00:39]} 41. Rc7 {[%clk 0:00:13]}  a5 {[%clk 0:00:38]} 42. a4 {[%clk 0:00:11]}  Kf7 {[%clk 0:00:36]} 43. Ke5 {[%clk 0:00:10]}  Rd3 {[%clk 0:00:35]} 44. Rb7 {[%clk 0:00:08]}  Rxh3 {[%clk 0:00:34]} 45. Rxb6 {[%clk 0:00:09]}  Ra3 {[%clk 0:00:34]} 46. f5 {[%clk 0:00:05]}  g5 {[%clk 0:00:31]} 47. Rxh6 {[%clk 0:00:05]}  Rxa4 {[%clk 0:00:31]} 48. Rh7+ {[%clk 0:00:05]}  Ke8 {[%clk 0:00:29]} 49. Ke6 {[%clk 0:00:04]}  Re4+ {[%clk 0:00:29]} 50. Kd5 {[%clk 0:00:05]}  Rxg4 {[%clk 0:00:29]} 51. Ke6 {[%clk 0:00:06]}  Re4+ {[%clk 0:00:29]} 52. Kd5 {[%clk 0:00:07]}  Re2 {[%clk 0:00:26]} 53. Rg7 {[%clk 0:00:06]}  a4 {[%clk 0:00:17]} 54. Rxg5 {[%clk 0:00:06]}  a3 {[%clk 0:00:18]} 55. Rg4 {[%clk 0:00:06]}  Kf7 {[%clk 0:00:14]} 56. Rg6 {[%clk 0:00:06]}  Rf2 {[%clk 0:00:10]} 57. Ra6 {[%clk 0:00:05]}  Rxf5+ {[%clk 0:00:10]} 58. Ke4 {[%clk 0:00:05]}  Rh5 {[%clk 0:00:07]} 59. Rxa3 {[%clk 0:00:06]}  Kf6 {[%clk 0:00:07]} 60. Ra6+ {[%clk 0:00:04]}  e6 {[%clk 0:00:07]} 61. Kf4 {[%clk 0:00:05]}  Rh4+ {[%clk 0:00:07]} 62. Kg3 {[%clk 0:00:05]}  Rb4 {[%clk 0:00:08]} 63. Kf3 {[%clk 0:00:05]}  Kf5 {[%clk 0:00:08]} 64. Ke3 {[%clk 0:00:05]}  Rb3+ {[%clk 0:00:08]} 65. Kd4 {[%clk 0:00:05]}  Rb1 {[%clk 0:00:04]} 66. Ra5+ {[%clk 0:00:04]}  Kf4 {[%clk 0:00:03]} 67. Ra6 {[%clk 0:00:04]}  Rd1+ {[%clk 0:00:02]} 68. Kc3 {[%clk 0:00:03]}  e5 {[%clk 0:00:03]} 69. Kc2 {[%clk 0:00:02]}  Rd8 {[%clk 0:00:02]} 70. Ra7 {[%clk 0:00:03]}  Ke3 {[%clk 0:00:02]} 71. Re7 {[%clk 0:00:02]}  e4 {[%clk 0:00:03]} 72. Kc3 {[%clk 0:00:02]}  Rc8+ {[%clk 0:00:03]} 73. Kb2 {[%clk 0:00:03]}  Kf3 {[%clk 0:00:03]} 74. Rf7+ {[%clk 0:00:03]}  Ke2 {[%clk 0:00:03]} 75. Re7 {[%clk 0:00:04]}  e3 {[%clk 0:00:04]} 76. Kb3 {[%clk 0:00:04]}  Kf2 {[%clk 0:00:04]} 77. Rf7+ {[%clk 0:00:04]}  Ke1 {[%clk 0:00:04]} 78. Re7 {[%clk 0:00:05]}  e2 {[%clk 0:00:05]} 79. Kb2 {[%clk 0:00:05]}  Rf8 {[%clk 0:00:05]} 80. Kc2 {[%clk 0:00:05]}  Kf2 {[%clk 0:00:05]} 81. Kd2 {[%clk 0:00:01]}  Rd8+ {[%clk 0:00:04]} 82. Kc3 {[%clk 0:00:01]}  e1=Q+ {[%clk 0:00:05]} 0-1


[Site "https://www.chess.com"]

[Event "Titled Tuesday Blitz May 30 Late 2023"]
[White "Balla, Tamas-Kristof"]
[Black "Lalanne, Pablo"]
[WhiteFideId "1208497"]
[BlackFideId "112151"]
[WhiteElo "2334"]
[BlackElo "2120"]
[Result "0-1"]
[Round "10"]
[TimeControl "180+2"]
[Date "2023.05.31"]
[WhiteClock "0:00:03"]
[BlackClock "0:00:07"]

1. e4 {[%clk 0:03:00]}  c5 {[%clk 0:02:59]} 2. Nf3 {[%clk 0:02:59]}  d6 {[%clk 0:02:59]} 3. d4 {[%clk 0:02:59]}  cxd4 {[%clk 0:03:00]} 4. Qxd4 {[%clk 0:03:00]}  Bd7 {[%clk 0:02:57]} 5. c4 {[%clk 0:02:57]}  Nc6 {[%clk 0:02:57]} 6. Qe3 {[%clk 0:02:57]}  g6 {[%clk 0:02:56]} 7. Nc3 {[%clk 0:02:52]}  Nf6 {[%clk 0:02:50]} 8. h3 {[%clk 0:02:52]}  Bg7 {[%clk 0:02:50]} 9. Be2 {[%clk 0:02:52]}  O-O {[%clk 0:02:50]} 10. O-O {[%clk 0:02:52]}  Rc8 {[%clk 0:02:47]} 11. Rb1 {[%clk 0:02:52]}  h6 {[%clk 0:02:30]} 12. b3 {[%clk 0:02:50]}  Be6 {[%clk 0:02:26]} 13. Bb2 {[%clk 0:02:48]}  Nd7 {[%clk 0:02:21]} 14. Nd5 {[%clk 0:02:33]}  a6 {[%clk 0:01:58]} 15. Bxg7 {[%clk 0:02:21]}  Kxg7 {[%clk 0:01:59]} 16. Nf4 {[%clk 0:02:22]}  Nc5 {[%clk 0:01:48]} 17. b4 {[%clk 0:02:18]}  Nd7 {[%clk 0:01:46]} 18. Nxe6+ {[%clk 0:02:18]}  fxe6 {[%clk 0:01:47]} 19. Nh2 {[%clk 0:02:01]}  Nce5 {[%clk 0:01:42]} 20. Rbc1 {[%clk 0:01:50]}  Qb6 {[%clk 0:01:35]} 21. Qc3 {[%clk 0:01:45]}  Kh7 {[%clk 0:01:26]} 22. a3 {[%clk 0:01:38]}  Nf6 {[%clk 0:01:26]} 23. Nf3 {[%clk 0:01:31]}  Nxe4 {[%clk 0:01:22]} 24. Qb2 {[%clk 0:01:17]}  Nxf3+ {[%clk 0:01:16]} 25. Bxf3 {[%clk 0:01:18]}  Ng5 {[%clk 0:01:10]} 26. Be2 {[%clk 0:01:18]}  Rf6 {[%clk 0:01:01]} 27. Bd3 {[%clk 0:01:15]}  Rcf8 {[%clk 0:00:58]} 28. Rce1 {[%clk 0:01:08]}  e5 {[%clk 0:00:56]} 29. Qc2 {[%clk 0:01:02]}  Ne6 {[%clk 0:00:53]} 30. c5 {[%clk 0:00:57]}  dxc5 {[%clk 0:00:48]} 31. Rxe5 {[%clk 0:00:57]}  cxb4 {[%clk 0:00:45]} 32. axb4 {[%clk 0:00:52]}  Qxb4 {[%clk 0:00:39]} 33. Qe2 {[%clk 0:00:53]}  Nf4 {[%clk 0:00:33]} 34. Rxe7+ {[%clk 0:00:51]}  R8f7 {[%clk 0:00:32]} 35. Rxf7+ {[%clk 0:00:48]}  Rxf7 {[%clk 0:00:33]} 36. Qa2 {[%clk 0:00:43]}  Qe7 {[%clk 0:00:22]} 37. Bc4 {[%clk 0:00:38]}  Rf5 {[%clk 0:00:18]} 38. Rd1 {[%clk 0:00:22]}  b5 {[%clk 0:00:16]} 39. Bb3 {[%clk 0:00:18]}  h5 {[%clk 0:00:14]} 40. Qc2 {[%clk 0:00:16]}  Kh6 {[%clk 0:00:12]} 41. Qd2 {[%clk 0:00:14]}  Qg5 {[%clk 0:00:12]} 42. f3 {[%clk 0:00:07]}  Nxh3+ {[%clk 0:00:11]} 43. Kh2 {[%clk 0:00:07]}  Nf4 {[%clk 0:00:10]} 44. Qb2 {[%clk 0:00:04]}  Qh4+ {[%clk 0:00:10]} 45. Kg1 {[%clk 0:00:03]}  Qg3 {[%clk 0:00:08]} 46. Qh8+ {[%clk 0:00:03]}  Kg5 {[%clk 0:00:08]} 47. Qd8+ {[%clk 0:00:03]}  Rf6 {[%clk 0:00:09]} 48. Qd2 {[%clk 0:00:01]}  Kh6 {[%clk 0:00:06]} 49. Qf2 {[%clk 0:00:01]}  Nh3+ {[%clk 0:00:06]} 50. Kh1 {[%clk 0:00:01]}  Qxf2 {[%clk 0:00:07]} 51. Kh2 {[%clk 0:00:02]}  Qh4 {[%clk 0:00:07]} 52. gxh3 {[%clk 0:00:03]}  Qf2+ {[%clk 0:00:07]} 0-1


[Site "https://www.chess.com"]

[Event "Titled Tuesday Blitz May 30 Late 2023"]
[White "Gatterer, Florian"]
[Black "Uzcategui Rodriguez, Alejandro"]
[WhiteFideId "811688"]
[BlackFideId "3903400"]
[WhiteElo "2221"]
[BlackElo "2252"]
[Result "0-1"]
[Round "10"]
[TimeControl "180+2"]
[Date "2023.05.31"]
[WhiteClock "0:00:17"]
[BlackClock "0:00:35"]

1. f4 {[%clk 0:03:00]}  d6 {[%clk 0:03:00]} 2. Nf3 {[%clk 0:03:00]}  f5 {[%clk 0:03:00]} 3. d4 {[%clk 0:02:55]}  Nf6 {[%clk 0:03:00]} 4. e3 {[%clk 0:02:55]}  g6 {[%clk 0:03:00]} 5. c4 {[%clk 0:02:54]}  Bg7 {[%clk 0:03:01]} 6. Bd3 {[%clk 0:02:54]}  O-O {[%clk 0:03:01]} 7. O-O {[%clk 0:02:54]}  c6 {[%clk 0:02:59]} 8. b3 {[%clk 0:02:54]}  Nbd7 {[%clk 0:02:59]} 9. Bb2 {[%clk 0:02:53]}  Qe8 {[%clk 0:02:59]} 10. Nbd2 {[%clk 0:02:51]}  e5 {[%clk 0:02:51]} 11. fxe5 {[%clk 0:02:39]}  dxe5 {[%clk 0:02:50]} 12. Nxe5 {[%clk 0:02:27]}  Nxe5 {[%clk 0:02:47]} 13. dxe5 {[%clk 0:02:28]}  Ng4 {[%clk 0:02:48]} 14. Re1 {[%clk 0:02:03]}  Nxe5 {[%clk 0:02:30]} 15. Be2 {[%clk 0:01:51]}  Ng4 {[%clk 0:02:15]} 16. Bxg4 {[%clk 0:01:39]}  Bxb2 {[%clk 0:02:14]} 17. Rb1 {[%clk 0:01:33]}  Bg7 {[%clk 0:02:00]} 18. Bf3 {[%clk 0:01:32]}  Be6 {[%clk 0:01:56]} 19. Qc2 {[%clk 0:01:31]}  Rd8 {[%clk 0:01:55]} 20. Rbd1 {[%clk 0:01:25]}  Qe7 {[%clk 0:01:55]} 21. e4 {[%clk 0:01:23]}  Qh4 {[%clk 0:01:44]} 22. g3 {[%clk 0:01:18]}  Qg5 {[%clk 0:01:40]} 23. Kg2 {[%clk 0:01:05]}  f4 {[%clk 0:01:38]} 24. e5 {[%clk 0:00:54]}  fxg3 {[%clk 0:01:21]} 25. hxg3 {[%clk 0:00:49]}  Bxe5 {[%clk 0:00:54]} 26. Ne4 {[%clk 0:00:49]}  Qe7 {[%clk 0:00:46]} 27. Nf2 {[%clk 0:00:38]}  Bf5 {[%clk 0:00:44]} 28. Qe2 {[%clk 0:00:30]}  Rde8 {[%clk 0:00:39]} 29. Ng4 {[%clk 0:00:22]}  Bxg4 {[%clk 0:00:35]} 30. Bxg4 {[%clk 0:00:22]}  Qg5 {[%clk 0:00:35]} 31. Kh3 {[%clk 0:00:18]}  h5 {[%clk 0:00:35]} 32. Rg1 {[%clk 0:00:07]}  hxg4+ {[%clk 0:00:33]} 33. Qxg4 {[%clk 0:00:08]}  Qxg4+ {[%clk 0:00:33]} 34. Kxg4 {[%clk 0:00:08]}  Kg7 {[%clk 0:00:31]} 35. Rd7+ {[%clk 0:00:08]}  Rf7 {[%clk 0:00:31]} 36. Rgd1 {[%clk 0:00:07]}  Bf6 {[%clk 0:00:30]} 37. Rxf7+ {[%clk 0:00:06]}  Kxf7 {[%clk 0:00:31]} 38. Rd8 {[%clk 0:00:06]}  Rxd8 {[%clk 0:00:29]} 39. Kf3 {[%clk 0:00:06]}  Rd2 {[%clk 0:00:29]} 40. Ke4 {[%clk 0:00:06]}  Rxa2 {[%clk 0:00:30]} 41. g4 {[%clk 0:00:06]}  Ra3 {[%clk 0:00:30]} 42. g5 {[%clk 0:00:07]}  Rxb3 {[%clk 0:00:30]} 43. c5 {[%clk 0:00:08]}  Bxg5 {[%clk 0:00:29]} 44. Ke5 {[%clk 0:00:08]}  Rb5 {[%clk 0:00:27]} 45. Kd6 {[%clk 0:00:09]}  Be7+ {[%clk 0:00:26]} 46. Ke5 {[%clk 0:00:09]}  Rxc5+ {[%clk 0:00:26]} 47. Ke4 {[%clk 0:00:09]}  a5 {[%clk 0:00:26]} 48. Kd4 {[%clk 0:00:10]}  a4 {[%clk 0:00:27]} 49. Ke4 {[%clk 0:00:11]}  a3 {[%clk 0:00:28]} 50. Kd4 {[%clk 0:00:12]}  a2 {[%clk 0:00:29]} 51. Ke4 {[%clk 0:00:13]}  b5 {[%clk 0:00:30]} 52. Kd4 {[%clk 0:00:13]}  b4 {[%clk 0:00:30]} 53. Ke4 {[%clk 0:00:14]}  b3 {[%clk 0:00:31]} 54. Kd4 {[%clk 0:00:15]}  b2 {[%clk 0:00:32]} 55. Ke4 {[%clk 0:00:16]}  Rd5 {[%clk 0:00:31]} 56. Kf4 {[%clk 0:00:16]}  Ke6 {[%clk 0:00:32]} 57. Ke4 {[%clk 0:00:16]}  c5 {[%clk 0:00:33]} 58. Kf4 {[%clk 0:00:15]}  c4 {[%clk 0:00:34]} 59. Ke4 {[%clk 0:00:16]}  c3 {[%clk 0:00:35]} 60. Kf4 {[%clk 0:00:17]}  c2 {[%clk 0:00:35]} 0-1


[Site "https://www.chess.com"]

[Event "Titled Tuesday Blitz May 30 Late 2023"]
[White "Kaplan, Avi Harrison"]
[Black "Dragomirescu, Calin"]
[WhiteFideId "30934559"]
[BlackFideId "1200895"]
[WhiteElo "1983"]
[BlackElo "2010"]
[Result "1-0"]
[Round "10"]
[TimeControl "180+2"]
[Date "2023.05.31"]
[WhiteClock "0:00:20"]
[BlackClock "0:01:03"]

1. b3 {[%clk 0:03:00]}  d5 {[%clk 0:02:44]} 2. Bb2 {[%clk 0:03:01]}  Bg4 {[%clk 0:02:44]} 3. Nf3 {[%clk 0:03:00]}  Bxf3 {[%clk 0:02:43]} 4. exf3 {[%clk 0:03:00]}  Nf6 {[%clk 0:02:42]} 5. Bd3 {[%clk 0:02:58]}  e6 {[%clk 0:02:41]} 6. O-O {[%clk 0:02:58]}  Bd6 {[%clk 0:02:40]} 7. Re1 {[%clk 0:02:57]}  O-O {[%clk 0:02:39]} 8. c4 {[%clk 0:02:54]}  c6 {[%clk 0:02:39]} 9. Bc2 {[%clk 0:02:54]}  Qc7 {[%clk 0:02:38]} 10. h3 {[%clk 0:02:53]}  a5 {[%clk 0:02:38]} 11. Nc3 {[%clk 0:02:49]}  Na6 {[%clk 0:02:35]} 12. Ne2 {[%clk 0:02:45]}  Nb4 {[%clk 0:02:33]} 13. Bxf6 {[%clk 0:02:45]}  gxf6 {[%clk 0:02:32]} 14. Bb1 {[%clk 0:02:44]}  dxc4 {[%clk 0:02:25]} 15. bxc4 {[%clk 0:02:39]}  f5 {[%clk 0:02:21]} 16. a3 {[%clk 0:02:31]}  Na6 {[%clk 0:02:20]} 17. d4 {[%clk 0:02:30]}  Be7 {[%clk 0:02:17]} 18. Qd2 {[%clk 0:02:24]}  Bf6 {[%clk 0:02:15]} 19. Bc2 {[%clk 0:02:22]}  Rad8 {[%clk 0:02:13]} 20. Qe3 {[%clk 0:02:19]}  Rfe8 {[%clk 0:02:07]} 21. Rab1 {[%clk 0:02:07]}  Qe7 {[%clk 0:02:02]} 22. Red1 {[%clk 0:01:55]}  Rd7 {[%clk 0:02:02]} 23. Ng3 {[%clk 0:01:11]}  Red8 {[%clk 0:01:54]} 24. Nh5 {[%clk 0:01:08]}  Bg5 {[%clk 0:01:52]} 25. f4 {[%clk 0:01:05]}  Bh6 {[%clk 0:01:52]} 26. Ba4 {[%clk 0:00:47]}  Qh4 {[%clk 0:01:46]} 27. Qf3 {[%clk 0:00:41]}  Rxd4 {[%clk 0:01:33]} 28. Rxd4 {[%clk 0:00:42]}  Rxd4 {[%clk 0:01:33]} 29. Rxb7 {[%clk 0:00:41]}  Nc5 {[%clk 0:01:28]} 30. Rb8+ {[%clk 0:00:35]}  Rd8 {[%clk 0:01:25]} 31. Rxd8+ {[%clk 0:00:34]}  Qxd8 {[%clk 0:01:24]} 32. Bxc6 {[%clk 0:00:35]}  Qd6 {[%clk 0:01:17]} 33. Bb5 {[%clk 0:00:30]}  Ne4 {[%clk 0:01:13]} 34. Kh2 {[%clk 0:00:24]}  Kf8 {[%clk 0:01:08]} 35. Ba4 {[%clk 0:00:20]}  Nc5 {[%clk 0:01:06]} 36. Qa8+ {[%clk 0:00:19]}  Ke7 {[%clk 0:01:03]} 37. Qe8# {[%clk 0:00:20]} 1-0


[Site "https://www.chess.com"]

[Event "Titled Tuesday Blitz May 30 Late 2023"]
[White "Botez, Alexandra"]
[Black "MariusBieliauskas"]
[WhiteFideId "2603365"]
[WhiteElo "2040"]
[BlackElo "2462"]
[Result "0-1"]
[Round "10"]
[TimeControl "180+2"]
[Date "2023.05.31"]
[WhiteClock "0:00:17"]
[BlackClock "0:00:11"]

1. d4 {[%clk 0:02:39]}  d5 {[%clk 0:02:58]} 2. c4 {[%clk 0:02:34]}  dxc4 {[%clk 0:02:58]} 3. e3 {[%clk 0:02:28]}  Be6 {[%clk 0:02:53]} 4. Nc3 {[%clk 0:02:28]}  Nf6 {[%clk 0:02:50]} 5. Nf3 {[%clk 0:02:27]}  c5 {[%clk 0:02:46]} 6. Ne5 {[%clk 0:02:24]}  cxd4 {[%clk 0:02:44]} 7. exd4 {[%clk 0:02:16]}  Nbd7 {[%clk 0:02:42]} 8. Nxc4 {[%clk 0:02:13]}  Rc8 {[%clk 0:02:24]} 9. Ne3 {[%clk 0:02:12]}  Nb6 {[%clk 0:02:18]} 10. Bb5+ {[%clk 0:02:11]}  Bd7 {[%clk 0:02:18]} 11. Bxd7+ {[%clk 0:02:09]}  Qxd7 {[%clk 0:02:18]} 12. O-O {[%clk 0:02:09]}  g6 {[%clk 0:02:18]} 13. Qf3 {[%clk 0:01:39]}  Bg7 {[%clk 0:02:15]} 14. a4 {[%clk 0:01:16]}  O-O {[%clk 0:02:12]} 15. a5 {[%clk 0:01:16]}  Nc4 {[%clk 0:02:12]} 16. Nxc4 {[%clk 0:01:16]}  Rxc4 {[%clk 0:02:12]} 17. Be3 {[%clk 0:01:16]}  Rd8 {[%clk 0:01:59]} 18. Rfd1 {[%clk 0:01:16]}  Nd5 {[%clk 0:01:54]} 19. Nxd5 {[%clk 0:01:16]}  Qxd5 {[%clk 0:01:54]} 20. Qe2 {[%clk 0:00:44]}  Rcc8 {[%clk 0:01:43]} 21. Ra3 {[%clk 0:00:42]}  Qe4 {[%clk 0:01:33]} 22. f3 {[%clk 0:00:37]}  Qc2 {[%clk 0:01:23]} 23. Rd2 {[%clk 0:00:30]}  Qb1+ {[%clk 0:01:19]} 24. Kf2 {[%clk 0:00:30]}  Qf5 {[%clk 0:01:12]} 25. Rb3 {[%clk 0:00:21]}  Rd7 {[%clk 0:01:04]} 26. Rb5 {[%clk 0:00:20]}  Qe6 {[%clk 0:00:57]} 27. d5 {[%clk 0:00:18]}  Qa6 {[%clk 0:00:57]} 28. b4 {[%clk 0:00:12]}  Rcd8 {[%clk 0:00:49]} 29. Rc5 {[%clk 0:00:12]}  Qf6 {[%clk 0:00:41]} 30. Bd4 {[%clk 0:00:10]}  Qh4+ {[%clk 0:00:40]} 31. g3 {[%clk 0:00:06]}  Qxh2+ {[%clk 0:00:34]} 32. Kf1 {[%clk 0:00:05]}  Qxg3 {[%clk 0:00:30]} 33. Bf2 {[%clk 0:00:05]}  Qh3+ {[%clk 0:00:30]} 34. Ke1 {[%clk 0:00:04]}  e6 {[%clk 0:00:24]} 35. Qe3 {[%clk 0:00:02]}  exd5 {[%clk 0:00:22]} 36. Rcxd5 {[%clk 0:00:03]}  Rxd5 {[%clk 0:00:20]} 37. Rxd5 {[%clk 0:00:02]}  Rxd5 {[%clk 0:00:18]} 38. Qe8+ {[%clk 0:00:02]}  Bf8 {[%clk 0:00:18]} 39. Bc5 {[%clk 0:00:02]}  Rxc5 {[%clk 0:00:16]} 40. bxc5 {[%clk 0:00:02]}  Qxf3 {[%clk 0:00:16]} 41. Qd7 {[%clk 0:00:02]}  Qc6 {[%clk 0:00:16]} 42. Qd8 {[%clk 0:00:02]}  Qxc5 {[%clk 0:00:15]} 43. Qd3 {[%clk 0:00:03]}  Qxa5+ {[%clk 0:00:15]} 44. Ke2 {[%clk 0:00:03]}  b5 {[%clk 0:00:15]} 45. Kf3 {[%clk 0:00:04]}  Qa3 {[%clk 0:00:15]} 46. Qxa3 {[%clk 0:00:03]}  Bxa3 {[%clk 0:00:15]} 47. Ke4 {[%clk 0:00:04]}  Bf8 {[%clk 0:00:15]} 48. Kd3 {[%clk 0:00:05]}  a5 {[%clk 0:00:15]} 49. Kc2 {[%clk 0:00:06]}  f5 {[%clk 0:00:13]} 50. Kb3 {[%clk 0:00:07]}  Kf7 {[%clk 0:00:13]} 51. Kc2 {[%clk 0:00:08]}  Ke6 {[%clk 0:00:13]} 52. Kd2 {[%clk 0:00:09]}  Kd5 {[%clk 0:00:14]} 53. Ke2 {[%clk 0:00:09]}  Ke4 {[%clk 0:00:14]} 54. Kd2 {[%clk 0:00:10]}  b4 {[%clk 0:00:14]} 55. Ke2 {[%clk 0:00:11]}  a4 {[%clk 0:00:15]} 56. Kd2 {[%clk 0:00:12]}  a3 {[%clk 0:00:15]} 57. Kc2 {[%clk 0:00:13]}  Kd4 {[%clk 0:00:15]} 58. Kb1 {[%clk 0:00:14]}  Kc3 {[%clk 0:00:15]} 59. Ka2 {[%clk 0:00:15]}  b3+ {[%clk 0:00:14]} 60. Kb1 {[%clk 0:00:16]}  a2+ {[%clk 0:00:14]} 61. Ka1 {[%clk 0:00:16]}  Kd3 {[%clk 0:00:14]} 62. Kb2 {[%clk 0:00:16]}  Bg7+ {[%clk 0:00:14]} 63. Ka3 {[%clk 0:00:16]}  a1=Q+ {[%clk 0:00:14]} 64. Kb4 {[%clk 0:00:17]}  b2 {[%clk 0:00:13]} 65. Kc5 {[%clk 0:00:18]}  Qa4 {[%clk 0:00:11]} 66. Kd5 {[%clk 0:00:18]}  Qc4+ {[%clk 0:00:11]} 67. Kd6 {[%clk 0:00:18]}  Kd4 {[%clk 0:00:11]} 68. Ke7 {[%clk 0:00:18]}  Ke5 {[%clk 0:00:10]} 69. Ke8 {[%clk 0:00:18]}  Bf8 {[%clk 0:00:10]} 70. Kxf8 {[%clk 0:00:18]}  Qc7 {[%clk 0:00:10]} 71. Kg8 {[%clk 0:00:18]}  Kf6 {[%clk 0:00:10]} 72. Kh8 {[%clk 0:00:17]}  Qg7# {[%clk 0:00:11]} 0-1


[Site "https://www.chess.com"]

[Event "Titled Tuesday Blitz May 30 Late 2023"]
[White "Papasimakopoulos, Alexandros"]
[Black "Shapiro, Daniel"]
[WhiteFideId "4244125"]
[BlackFideId "2001780"]
[WhiteElo "2359"]
[BlackElo "2369"]
[Result "1-0"]
[Round "10"]
[TimeControl "180+2"]
[Date "2023.05.31"]
[WhiteClock "0:01:01"]
[BlackClock "0:00:01"]

1. b4 {[%clk 0:02:49]}  e5 {[%clk 0:02:58]} 2. Bb2 {[%clk 0:02:48]}  Bxb4 {[%clk 0:02:55]} 3. Bxe5 {[%clk 0:02:47]}  Nf6 {[%clk 0:02:56]} 4. Nf3 {[%clk 0:02:45]}  Nc6 {[%clk 0:02:55]} 5. Bb2 {[%clk 0:02:42]}  d5 {[%clk 0:02:52]} 6. e3 {[%clk 0:02:42]}  O-O {[%clk 0:02:43]} 7. c4 {[%clk 0:02:42]}  Bg4 {[%clk 0:02:19]} 8. h3 {[%clk 0:02:37]}  Bh5 {[%clk 0:02:17]} 9. a3 {[%clk 0:02:27]}  Ba5 {[%clk 0:02:11]} 10. Qb3 {[%clk 0:02:25]}  Bb6 {[%clk 0:01:55]} 11. Be2 {[%clk 0:02:19]}  Na5 {[%clk 0:01:52]} 12. Qb5 {[%clk 0:02:16]}  a6 {[%clk 0:01:32]} 13. Qb4 {[%clk 0:02:16]}  c5 {[%clk 0:00:39]} 14. Qa4 {[%clk 0:02:05]}  Nxc4 {[%clk 0:00:38]} 15. Bxc4 {[%clk 0:02:04]}  dxc4 {[%clk 0:00:38]} 16. Qxc4 {[%clk 0:02:05]}  Bg6 {[%clk 0:00:36]} 17. d4 {[%clk 0:02:01]}  Qd5 {[%clk 0:00:34]} 18. Nbd2 {[%clk 0:01:59]}  Rac8 {[%clk 0:00:30]} 19. Qxd5 {[%clk 0:01:55]}  Nxd5 {[%clk 0:00:29]} 20. Nc4 {[%clk 0:01:55]}  Ba7 {[%clk 0:00:26]} 21. Nce5 {[%clk 0:01:51]}  Bf5 {[%clk 0:00:24]} 22. O-O {[%clk 0:01:48]}  Rfe8 {[%clk 0:00:23]} 23. Rac1 {[%clk 0:01:43]}  cxd4 {[%clk 0:00:22]} 24. Bxd4 {[%clk 0:01:41]}  Bxd4 {[%clk 0:00:18]} 25. Rxc8 {[%clk 0:01:41]}  Rxc8 {[%clk 0:00:17]} 26. Nxd4 {[%clk 0:01:41]}  Bg6 {[%clk 0:00:15]} 27. a4 {[%clk 0:01:37]}  f6 {[%clk 0:00:14]} 28. Nxg6 {[%clk 0:01:38]}  hxg6 {[%clk 0:00:15]} 29. a5 {[%clk 0:01:36]}  Rc5 {[%clk 0:00:14]} 30. Rb1 {[%clk 0:01:36]}  Nc3 {[%clk 0:00:14]} 31. Rxb7 {[%clk 0:01:35]}  Rxa5 {[%clk 0:00:12]} 32. Ne6 {[%clk 0:01:35]}  Ra1+ {[%clk 0:00:11]} 33. Kh2 {[%clk 0:01:35]}  a5 {[%clk 0:00:09]} 34. Rxg7+ {[%clk 0:01:35]}  Kh8 {[%clk 0:00:09]} 35. Rxg6 {[%clk 0:01:35]}  a4 {[%clk 0:00:09]} 36. Nd4 {[%clk 0:01:22]}  a3 {[%clk 0:00:09]} 37. Nc2 {[%clk 0:01:23]}  Ra2 {[%clk 0:00:07]} 38. Nxa3 {[%clk 0:01:23]}  Rxa3 {[%clk 0:00:08]} 39. Rxf6 {[%clk 0:01:24]}  Ne4 {[%clk 0:00:05]} 40. Rf4 {[%clk 0:01:20]}  Nd6 {[%clk 0:00:06]} 41. Rd4 {[%clk 0:01:15]}  Nf5 {[%clk 0:00:05]} 42. Rd5 {[%clk 0:01:15]}  Ne7 {[%clk 0:00:05]} 43. Rd7 {[%clk 0:01:15]}  Ng8 {[%clk 0:00:05]} 44. e4 {[%clk 0:01:12]}  Nf6 {[%clk 0:00:05]} 45. Re7 {[%clk 0:01:12]}  Kg8 {[%clk 0:00:03]} 46. e5 {[%clk 0:01:11]}  Nd5 {[%clk 0:00:03]} 47. Rd7 {[%clk 0:01:09]}  Nf4 {[%clk 0:00:03]} 48. g3 {[%clk 0:01:08]}  Ng6 {[%clk 0:00:04]} 49. f4 {[%clk 0:01:07]}  Ra2+ {[%clk 0:00:03]} 50. Kg1 {[%clk 0:01:07]}  Kf8 {[%clk 0:00:03]} 51. h4 {[%clk 0:01:08]}  Ne7 {[%clk 0:00:03]} 52. h5 {[%clk 0:01:06]}  Nf5 {[%clk 0:00:03]} 53. g4 {[%clk 0:01:06]}  Ne3 {[%clk 0:00:03]} 54. g5 {[%clk 0:01:06]}  Rg2+ {[%clk 0:00:03]} 55. Kh1 {[%clk 0:01:06]}  Rf2 {[%clk 0:00:03]} 56. h6 {[%clk 0:01:01]}  Rxf4 {[%clk 0:00:02]} 57. h7 {[%clk 0:01:02]}  Rh4+ {[%clk 0:00:02]} 58. Kg1 {[%clk 0:01:02]}  Nf5 {[%clk 0:00:01]} 59. g6 {[%clk 0:01:02]}  Ng7 {[%clk 0:00:01]} 60. Rf7+ {[%clk 0:01:01]} 1-0


[Site "https://www.chess.com"]